fUST/lending_fUST_20260528
["ID","MTS","AMOUNT","RATE_DAILY","PERIOD"]
[423210005,1779934240000,-500.0,8.219e-05,2]
[423209974,1779934240000,-500.0,8.219e-05,2]
[423209988,1779934240000,-500.0,8.219e-05,2]
[423209977,1779934240000,-500.0,8.219e-05,2]
[423209944,1779934240000,-462.00380418,8.219e-05,2]
[423209975,1779934240000,-500.0,8.219e-05,2]
[423210011,1779934240000,-507.47146721,8.219e-05,2]
[423209943,1779934240000,-502.54932223,8.219e-05,2]
[423209946,1779934240000,-500.41986558,8.219e-05,2]
[423209956,1779934240000,-500.0,8.219e-05,2]
[423209957,1779934240000,-500.0,8.219e-05,2]
[423209947,1779934240000,-500.0,8.219e-05,2]
[423209954,1779934240000,-500.0,8.219e-05,2]
[423209951,1779934240000,-500.0,8.219e-05,2]
[423209948,1779934240000,-500.92698934,8.219e-05,2]
[423209958,1779934240000,-500.0,8.219e-05,2]
[423209949,1779934240000,-500.0,8.219e-05,2]
[423209955,1779934240000,-500.54040491,8.219e-05,2]
[423209953,1779934240000,-500.0,8.219e-05,2]
[423209952,1779934240000,-500.0,8.219e-05,2]
[423209950,1779934240000,-500.0,8.219e-05,2]
[423209960,1779934240000,-500.0,8.219e-05,2]
[423209963,1779934240000,-500.68043456,8.219e-05,2]
[423209972,1779934240000,-501.45498497,8.219e-05,2]
[423209966,1779934240000,-500.0,8.219e-05,2]
[423209971,1779934240000,-500.0,8.219e-05,2]
[423209961,1779934240000,-500.0,8.219e-05,2]
[423209965,1779934240000,-500.0,8.219e-05,2]
[423209964,1779934240000,-500.45266874,8.219e-05,2]
[423209970,1779934240000,-501.49104781,8.219e-05,2]
[423209962,1779934240000,-500.71448927,8.219e-05,2]
[423209968,1779934240000,-500.76761853,8.219e-05,2]
[423209967,1779934240000,-500.32464742,8.219e-05,2]
[423209969,1779934240000,-500.0,8.219e-05,2]
[423209973,1779934240000,-594.14951024,8.219e-05,2]
[423209976,1779934240000,-500.83576498,8.219e-05,2]
[423210009,1779934240000,-500.27007254,8.219e-05,2]
[423210001,1779934240000,-500.0,8.219e-05,2]
[423210010,1779934240000,-500.0,8.219e-05,2]
[423210047,1779934240000,-500.0,8.219e-05,2]
[423210048,1779934240000,-500.0,8.219e-05,2]
[423210052,1779934240000,-500.0,8.219e-05,2]
[423210051,1779934240000,-500.0,8.219e-05,2]
[423210050,1779934240000,-500.0,8.219e-05,2]
[423210049,1779934240000,-500.0,8.219e-05,2]
[423210054,1779934240000,-500.0,8.219e-05,2]
[423210064,1779934240000,-500.0,8.219e-05,2]
[423210066,1779934240000,-500.0,8.219e-05,2]
[423210053,1779934240000,-500.0,8.219e-05,2]
[423210065,1779934240000,-500.0,8.219e-05,2]
[423210055,1779934240000,-500.0,8.219e-05,2]
[423210056,1779934240000,-500.0,8.219e-05,2]
[423210058,1779934240000,-500.0,8.219e-05,2]
[423210057,1779934240000,-500.0,8.219e-05,2]
[423210060,1779934240000,-500.0,8.219e-05,2]
[423210063,1779934240000,-500.0,8.219e-05,2]
[423210062,1779934240000,-500.0,8.219e-05,2]
[423210059,1779934240000,-500.0,8.219e-05,2]
[423210061,1779934240000,-500.0,8.219e-05,2]
[423210067,1779934240000,-500.0,8.219e-05,2]
[423210068,1779934240000,-500.0,8.219e-05,2]
[423210070,1779934240000,-500.0,8.219e-05,2]
[423210069,1779934240000,-500.0,8.219e-05,2]
[423210072,1779934240000,-500.0,8.219e-05,2]
[423210075,1779934240000,-500.0,8.219e-05,2]
[423210071,1779934240000,-500.0,8.219e-05,2]
[423210073,1779934240000,-500.0735579,8.219e-05,2]
[423210002,1779934240000,-500.0,8.219e-05,2]
[423210044,1779934240000,-500.0,8.219e-05,2]
[423210046,1779934240000,-500.53400995,8.219e-05,2]
[423210074,1779934240000,-500.0,8.219e-05,2]
[423210043,1779934240000,-500.0,8.219e-05,2]
[423210045,1779934240000,-500.0,8.219e-05,2]
[423210013,1779934240000,-500.0,8.219e-05,2]
[423210016,1779934240000,-500.0,8.219e-05,2]
[423210017,1779934240000,-500.0,8.219e-05,2]
[423210018,1779934240000,-500.0,8.219e-05,2]
[423210020,1779934240000,-500.0,8.219e-05,2]
[423210076,1779934240000,-500.41054992,8.219e-05,2]
[423210019,1779934240000,-500.0,8.219e-05,2]
[423210022,1779934240000,-500.0,8.219e-05,2]
[423210027,1779934240000,-500.0,8.219e-05,2]
[423210021,1779934240000,-500.0,8.219e-05,2]
[423210024,1779934240000,-500.0,8.219e-05,2]
[423210023,1779934240000,-500.08219193,8.219e-05,2]
[423210026,1779934240000,-500.0,8.219e-05,2]
[423210028,1779934240000,-501.18721551,8.219e-05,2]
[423210015,1779934240000,-500.0,8.219e-05,2]
[423210030,1779934240000,-500.0,8.219e-05,2]
[423210039,1779934240000,-500.0,8.219e-05,2]
[423210042,1779934240000,-500.0,8.219e-05,2]
[423210038,1779934240000,-500.0,8.219e-05,2]
[423210036,1779934240000,-500.0,8.219e-05,2]
[423210025,1779934240000,-501.21878207,8.219e-05,2]
[423210034,1779934240000,-542.161286,8.219e-05,2]
[423210037,1779934240000,-500.0,8.219e-05,2]
[423210033,1779934240000,-503.89801811,8.219e-05,2]
[423210040,1779934240000,-500.0,8.219e-05,2]
[423210041,1779934240000,-500.0,8.219e-05,2]
[423210031,1779934240000,-500.0,8.219e-05,2]
[423210029,1779934240000,-500.0,8.219e-05,2]
[423210032,1779934240000,-529.16977627,8.219e-05,2]
[423210035,1779934240000,-500.0,8.219e-05,2]
[423210120,1779934241000,-500.0,8.219e-05,2]
[423210125,1779934241000,-379.85922137,8.219e-05,2]
[423210122,1779934241000,-500.0,8.219e-05,2]
[423210116,1779934241000,-500.0,8.219e-05,2]
[423210115,1779934241000,-500.0,8.219e-05,2]
[423210112,1779934241000,-500.0,8.219e-05,2]
[423210114,1779934241000,-500.0,8.219e-05,2]
[423210113,1779934241000,-500.0,8.219e-05,2]
[423210111,1779934241000,-500.0,8.219e-05,2]
[423210109,1779934241000,-500.0,8.219e-05,2]
[423210110,1779934241000,-501.17839571,8.219e-05,2]
[423210117,1779934241000,-500.0,8.219e-05,2]
[423210121,1779934241000,-500.0,8.219e-05,2]
[423210127,1779934241000,-500.0,8.219e-05,2]
[423210124,1779934241000,-500.0,8.219e-05,2]
[423210126,1779934241000,-500.10598229,8.219e-05,2]
[423210118,1779934241000,-869.89,8.219e-05,2]
[423210123,1779934241000,-500.0,8.219e-05,2]
[423210128,1779934241000,-500.0,8.219e-05,2]
[423210129,1779934241000,-500.0,8.219e-05,2]
[423210135,1779934241000,-500.0,8.219e-05,2]
[423210133,1779934241000,-500.0,8.219e-05,2]
[423210132,1779934241000,-504.03016232,8.219e-05,2]
[423210131,1779934241000,-500.0,8.219e-05,2]
[423210130,1779934241000,-500.0,8.219e-05,2]
[423210104,1779934241000,-500.0,8.219e-05,2]
[423210134,1779934241000,-500.0,8.219e-05,2]
[423210119,1779934241000,-500.0,8.219e-05,2]
[423210103,1779934241000,-501.57527828,8.219e-05,2]
[423210083,1779934241000,-500.0,8.219e-05,2]
[423210108,1779934241000,-503.06610491,8.219e-05,2]
[423210136,1779934241000,-500.0,8.219e-05,2]
[423210079,1779934241000,-285.52351661,8.219e-05,2]
[423210078,1779934241000,-500.0,8.219e-05,2]
[423210077,1779934241000,-500.84498904,8.219e-05,2]
[423210080,1779934241000,-500.0,8.219e-05,2]
[423210082,1779934241000,-500.0,8.219e-05,2]
[423210092,1779934241000,-500.0,8.219e-05,2]
[423210094,1779934241000,-500.0,8.219e-05,2]
[423210093,1779934241000,-500.0,8.219e-05,2]
[423210081,1779934241000,-794.53,8.219e-05,2]
[423210090,1779934241000,-500.0,8.219e-05,2]
[423210086,1779934241000,-500.0,8.219e-05,2]
[423210088,1779934241000,-500.39444666,8.219e-05,2]
[423210101,1779934241000,-446.19745803,8.219e-05,2]
[423210089,1779934241000,-500.48101262,8.219e-05,2]
[423210085,1779934241000,-500.0,8.219e-05,2]
[423210091,1779934241000,-500.0,8.219e-05,2]
[423210087,1779934241000,-500.0,8.219e-05,2]
[423210095,1779934241000,-500.0,8.219e-05,2]
[423210098,1779934241000,-500.0,8.219e-05,2]
[423210107,1779934241000,-500.0,8.219e-05,2]
[423210099,1779934241000,-500.0,8.219e-05,2]
[423210106,1779934241000,-4222.87,8.219e-05,2]
[423210097,1779934241000,-500.0,8.219e-05,2]
[423210096,1779934241000,-500.0,8.219e-05,2]
[423210100,1779934241000,-535.74,8.219e-05,2]
[423210102,1779934241000,-500.0,8.219e-05,2]
[423210105,1779934241000,-501.5558001,8.219e-05,2]
[423210084,1779934241000,-500.0,8.219e-05,2]
[423210138,1779934241000,-500.0,8.219e-05,2]
[423210150,1779934241000,-500.78841924,8.219e-05,2]
[423210137,1779934241000,-500.0,8.219e-05,2]
[423210171,1779934241000,-579.37580358,8.219e-05,2]
[423210174,1779934241000,-500.0,8.219e-05,2]
[423210172,1779934241000,-500.0,8.219e-05,2]
[423210175,1779934241000,-503.60653163,8.219e-05,2]
[423210173,1779934241000,-500.0,8.219e-05,2]
[423210176,1779934241000,-504.0101343,8.219e-05,2]
[423210177,1779934241000,-500.0,8.219e-05,2]
[423210170,1779934241000,-500.0,8.219e-05,2]
[423210178,1779934241000,-500.78049478,8.219e-05,2]
[423210182,1779934241000,-500.0,8.219e-05,2]
[423210183,1779934241000,-500.0,8.219e-05,2]
[423210193,1779934241000,-501.7081177,8.493e-05,2]
[423210184,1779934241000,-500.82159351,8.219e-05,2]
[423210168,1779934241000,-500.0,8.219e-05,2]
[423210188,1779934241000,-307.2390911,8.493e-05,2]
[423210185,1779934241000,-500.0,8.219e-05,2]
[423210191,1779934241000,-500.5147462,8.493e-05,2]
[423210139,1779934241000,-500.48888521,8.219e-05,2]
[423210190,1779934241000,-500.0,8.493e-05,2]
[423210187,1779934241000,-600.0,8.382e-05,2]
[423210189,1779934241000,-359.51571679,8.493e-05,2]
[423210195,1779934241000,-500.88059629,8.493e-05,2]
[423210197,1779934241000,-503.37260265,8.493e-05,2]
[423210194,1779934241000,-979.7814,8.493e-05,2]
[423210196,1779934241000,-500.0,8.493e-05,2]
[423210198,1779934241000,-500.0,8.493e-05,2]
[423210200,1779934241000,-500.0,8.493e-05,2]
[423210199,1779934241000,-515.14339316,8.493e-05,2]
[423210186,1779934241000,-500.0,8.219e-05,2]
[423210180,1779934241000,-501.06984683,8.219e-05,2]
[423210192,1779934241000,-500.0,8.493e-05,2]
[423210181,1779934241000,-500.0,8.219e-05,2]
[423210179,1779934241000,-500.92563033,8.219e-05,2]
[423210141,1779934241000,-500.0,8.219e-05,2]
[423210151,1779934241000,-500.0,8.219e-05,2]
[423210140,1779934241000,-501.0635143,8.219e-05,2]
[423210142,1779934241000,-500.0,8.219e-05,2]
[423210143,1779934241000,-500.0,8.219e-05,2]
[423210153,1779934241000,-500.0,8.219e-05,2]
[423210144,1779934241000,-500.0,8.219e-05,2]
[423210145,1779934241000,-500.0,8.219e-05,2]
[423210146,1779934241000,-500.0,8.219e-05,2]
[423210149,1779934241000,-500.0,8.219e-05,2]
[423210148,1779934241000,-500.0,8.219e-05,2]
[423210147,1779934241000,-500.0,8.219e-05,2]
[423210156,1779934241000,-500.0,8.219e-05,2]
[423210152,1779934241000,-500.0,8.219e-05,2]
[423210154,1779934241000,-501.53547382,8.219e-05,2]
[423210169,1779934241000,-500.71517382,8.219e-05,2]
[423210158,1779934241000,-500.0,8.219e-05,2]
[423210166,1779934241000,-501.23179784,8.219e-05,2]
[423210165,1779934241000,-500.0,8.219e-05,2]
[423210161,1779934241000,-500.0,8.219e-05,2]
[423210167,1779934241000,-500.0,8.219e-05,2]
[423210164,1779934241000,-500.0,8.219e-05,2]
[423210163,1779934241000,-500.0,8.219e-05,2]
[423210160,1779934241000,-500.0,8.219e-05,2]
[423210162,1779934241000,-500.0,8.219e-05,2]
[423210159,1779934241000,-500.0,8.219e-05,2]
[423210157,1779934241000,-500.0,8.219e-05,2]
[423210155,1779934241000,-500.0,8.219e-05,2]
[423210223,1779934242000,-500.0,8.493e-05,2]
[423210225,1779934242000,-500.0,8.493e-05,2]
[423210221,1779934242000,-500.0,8.493e-05,2]
[423210224,1779934242000,-500.0,8.493e-05,2]
[423210227,1779934242000,-500.0,8.493e-05,2]
[423210228,1779934242000,-500.0,8.493e-05,2]
[423210229,1779934242000,-500.0,8.493e-05,2]
[423210226,1779934242000,-500.0,8.493e-05,2]
[423210232,1779934242000,-437.09,8.493e-05,2]
[423210233,1779934242000,-500.0,8.493e-05,2]
[423210235,1779934242000,-500.0,8.493e-05,2]
[423210237,1779934242000,-500.0,8.493e-05,2]
[423210234,1779934242000,-500.0,8.493e-05,2]
[423210236,1779934242000,-500.0,8.493e-05,2]
[423210238,1779934242000,-500.0,8.493e-05,2]
[423210230,1779934242000,-500.0,8.493e-05,2]
[423210240,1779934242000,-500.5434213,8.493e-05,2]
[423210231,1779934242000,-500.0,8.493e-05,2]
[423210219,1779934242000,-500.0,8.493e-05,2]
[423210206,1779934242000,-500.0,8.493e-05,2]
[423210220,1779934242000,-500.87432562,8.493e-05,2]
[423210241,1779934242000,-502.12375883,8.493e-05,2]
[423210205,1779934242000,-500.0,8.493e-05,2]
[423210204,1779934242000,-500.52460975,8.493e-05,2]
[423210202,1779934242000,-500.0,8.493e-05,2]
[423210203,1779934242000,-161.49734584,8.493e-05,2]
[423210201,1779934242000,-500.0,8.493e-05,2]
[423210208,1779934242000,-500.0,8.493e-05,2]
[423210209,1779934242000,-500.25572449,8.493e-05,2]
[423210222,1779934242000,-500.0,8.493e-05,2]
[423210212,1779934242000,-500.0,8.493e-05,2]
[423210210,1779934242000,-557.088495,8.493e-05,2]
[423210216,1779934242000,-500.0,8.493e-05,2]
[423210211,1779934242000,-500.0,8.493e-05,2]
[423210207,1779934242000,-504.92,8.493e-05,2]
[423210218,1779934242000,-500.99277254,8.493e-05,2]
[423210213,1779934242000,-500.0,8.493e-05,2]
[423210215,1779934242000,-500.0,8.493e-05,2]
[423210214,1779934242000,-500.0,8.493e-05,2]
[423210217,1779934242000,-500.0,8.493e-05,2]
[423210239,1779934242000,-500.0,8.493e-05,2]
[423210248,1779934242000,-500.0,8.493e-05,2]
[423210244,1779934242000,-502.6190749,8.493e-05,2]
[423210267,1779934242000,-1002.80396915,8.493e-05,2]
[423210264,1779934242000,-179.12525984,8.493e-05,2]
[423210266,1779934242000,-500.0,8.493e-05,2]
[423210268,1779934242000,-501.44275789,8.493e-05,2]
[423210271,1779934242000,-500.0,8.493e-05,2]
[423210274,1779934242000,-500.0,8.493e-05,2]
[423210273,1779934242000,-502.83055018,8.493e-05,2]
[423210276,1779934242000,-500.0,8.493e-05,2]
[423210262,1779934242000,-500.48577585,8.493e-05,2]
[423210281,1779934242000,-500.0,8.493e-05,2]
[423210278,1779934242000,-500.0,8.493e-05,2]
[423210277,1779934242000,-501.40142602,8.493e-05,2]
[423210272,1779934242000,-502.58557886,8.493e-05,2]
[423210279,1779934242000,-500.0,8.493e-05,2]
[423210283,1779934242000,-500.0,8.493e-05,2]
[423210282,1779934242000,-500.0,8.493e-05,2]
[423210285,1779934242000,-367.02303112,8.493e-05,2]
[423210243,1779934242000,-500.0,8.493e-05,2]
[423210275,1779934242000,-501.81499039,8.493e-05,2]
[423210263,1779934242000,-500.9660561,8.493e-05,2]
[423210280,1779934242000,-500.0,8.493e-05,2]
[423210270,1779934242000,-500.54475422,8.493e-05,2]
[423210269,1779934242000,-500.0,8.493e-05,2]
[423210242,1779934242000,-500.0,8.493e-05,2]
[423210245,1779934242000,-500.0,8.493e-05,2]
[423210247,1779934242000,-500.0,8.493e-05,2]
[423210246,1779934242000,-500.0,8.493e-05,2]
[423210249,1779934242000,-500.0,8.493e-05,2]
[423210251,1779934242000,-500.0,8.493e-05,2]
[423210250,1779934242000,-500.0,8.493e-05,2]
[423210252,1779934242000,-500.0,8.493e-05,2]
[423210284,1779934242000,-500.0,8.493e-05,2]
[423210257,1779934242000,-500.0,8.493e-05,2]
[423210256,1779934242000,-502.00675933,8.493e-05,2]
[423210255,1779934242000,-500.0,8.493e-05,2]
[423210259,1779934242000,-500.84593698,8.493e-05,2]
[423210254,1779934242000,-388.6324293,8.493e-05,2]
[423210260,1779934242000,-502.07347268,8.493e-05,2]
[423210258,1779934242000,-577.92201721,8.493e-05,2]
[423210253,1779934242000,-503.01161152,8.493e-05,2]
[423210261,1779934242000,-581.29875407,8.493e-05,2]
[423210308,1779934243000,-554.64285297,8.493e-05,2]
[423210302,1779934243000,-500.0,8.493e-05,2]
[423210306,1779934243000,-500.0,8.493e-05,2]
[423210316,1779934243000,-500.0,8.493e-05,2]
[423210321,1779934243000,-500.0,8.493e-05,2]
[423210327,1779934243000,-500.0,8.493e-05,2]
[423210323,1779934243000,-500.0,8.493e-05,2]
[423210325,1779934243000,-500.0,8.493e-05,2]
[423210329,1779934243000,-500.0,8.493e-05,2]
[423210301,1779934243000,-500.0,8.493e-05,2]
[423210317,1779934243000,-500.0,8.493e-05,2]
[423210319,1779934243000,-500.0,8.493e-05,2]
[423210300,1779934243000,-500.0,8.493e-05,2]
[423210297,1779934243000,-389.63314839,8.493e-05,2]
[423210313,1779934243000,-500.0,8.493e-05,2]
[423210315,1779934243000,-500.0,8.493e-05,2]
[423210298,1779934243000,-500.0,8.493e-05,2]
[423210314,1779934243000,-500.0,8.493e-05,2]
[423210312,1779934243000,-500.0,8.493e-05,2]
[423210310,1779934243000,-500.0,8.493e-05,2]
[423210299,1779934243000,-500.0,8.493e-05,2]
[423210292,1779934243000,-346.59499927,8.219e-05,2]
[423210296,1779934243000,-500.0,8.493e-05,2]
[423210294,1779934243000,-500.0,8.493e-05,2]
[423210291,1779934243000,-500.0,8.219e-05,2]
[423210290,1779934243000,-500.35176927,8.219e-05,2]
[423210331,1779934243000,-500.0,8.493e-05,2]
[423210304,1779934243000,-500.0,8.493e-05,2]
[423210337,1779934243000,-500.0,8.493e-05,2]
[423210349,1779934243000,-500.0,8.493e-05,2]
[423210335,1779934243000,-500.0,8.493e-05,2]
[423210374,1779934243000,-500.0,8.219e-05,2]
[423210375,1779934243000,-291.20205242,8.493e-05,2]
[423210368,1779934243000,-2867.59348163,8.493e-05,2]
[423210365,1779934243000,-535.74,8.493e-05,2]
[423210367,1779934243000,-501.34722679,8.493e-05,2]
[423210362,1779934243000,-500.0,8.493e-05,2]
[423210364,1779934243000,-500.0,8.493e-05,2]
[423210361,1779934243000,-500.0,8.493e-05,2]
[423210333,1779934243000,-500.0,8.493e-05,2]
[423210360,1779934243000,-500.0,8.493e-05,2]
[423210363,1779934243000,-500.0,8.493e-05,2]
[423210357,1779934243000,-500.0,8.493e-05,2]
[423210358,1779934243000,-500.0,8.493e-05,2]
[423210359,1779934243000,-500.0,8.493e-05,2]
[423210366,1779934243000,-500.0,8.493e-05,2]
[423210352,1779934243000,-500.0,8.493e-05,2]
[423210339,1779934243000,-500.0,8.493e-05,2]
[423210356,1779934243000,-500.0,8.493e-05,2]
[423210341,1779934243000,-500.0,8.493e-05,2]
[423210343,1779934243000,-500.0,8.493e-05,2]
[423210353,1779934243000,-500.0,8.493e-05,2]
[423210355,1779934243000,-500.0,8.493e-05,2]
[423210354,1779934243000,-500.0,8.493e-05,2]
[423210350,1779934243000,-794.53,8.493e-05,2]
[423210347,1779934243000,-500.0,8.493e-05,2]
[423210344,1779934243000,-500.0,8.493e-05,2]
[423210351,1779934243000,-500.0,8.493e-05,2]
[423210348,1779934243000,-500.0,8.493e-05,2]
[423210346,1779934243000,-500.0,8.493e-05,2]
[423210395,1779934244000,-594.82540013,8.493e-05,2]
[423210396,1779934244000,-500.0,8.493e-05,2]
[423210394,1779934244000,-500.0,8.493e-05,2]
[423210385,1779934244000,-307.63938695,8.493e-05,2]
[423210384,1779934244000,-192.36061305,8.493e-05,2]
[423210377,1779934244000,-500.0,8.493e-05,2]
[423210380,1779934244000,-500.0,8.493e-05,2]
[423210381,1779934244000,-500.0,8.493e-05,2]
[423210378,1779934244000,-500.0,8.493e-05,2]
[423210379,1779934244000,-500.61896434,8.493e-05,2]
[423210376,1779934244000,-1064.07446595,8.493e-05,2]
[423210386,1779934244000,-869.89,8.493e-05,2]
[423210382,1779934244000,-500.0,8.493e-05,2]
[423210392,1779934244000,-500.0,8.493e-05,2]
[423210393,1779934244000,-500.0,8.493e-05,2]
[423210388,1779934244000,-502.83064366,8.493e-05,2]
[423210390,1779934244000,-500.0,8.493e-05,2]
[423210402,1779934244000,-403.22020072,8.493e-05,2]
[423210403,1779934244000,-501.71897688,8.493e-05,2]
[423210405,1779934244000,-15.0608224,8.493e-05,2]
[423210399,1779934244000,-500.0,8.493e-05,2]
[423210397,1779934244000,-500.0,8.493e-05,2]
[423210404,1779934244000,-500.0,8.493e-05,2]
[423210401,1779934244000,-96.77979928,8.493e-05,2]
[423210398,1779934244000,-500.0,8.493e-05,2]
[423210389,1779934244000,-500.0,8.493e-05,2]
[423210391,1779934244000,-500.0,8.493e-05,2]
[423210383,1779934244000,-500.0,8.493e-05,2]
[423210400,1779934244000,-240.41987396,8.493e-05,2]
[423210437,1779934246000,-484.9391776,8.493e-05,2]
[423210441,1779934246000,-500.0,8.493e-05,2]
[423210449,1779934246000,-500.0,8.493e-05,2]
[423210450,1779934246000,-500.0,8.493e-05,2]
[423210446,1779934246000,-500.0,8.493e-05,2]
[423210447,1779934246000,-500.0,8.493e-05,2]
[423210434,1779934246000,-500.0,8.219e-05,2]
[423210444,1779934246000,-500.0,8.493e-05,2]
[423210443,1779934246000,-500.0,8.493e-05,2]
[423210438,1779934246000,-500.0,8.493e-05,2]
[423210436,1779934246000,-302.39726833,8.219e-05,2]
[423210435,1779934246000,-159.49715806,8.219e-05,2]
[423210440,1779934246000,-500.0,8.493e-05,2]
[423210445,1779934246000,-500.0,8.493e-05,2]
[423210439,1779934246000,-500.0,8.493e-05,2]
[423210448,1779934246000,-500.0,8.493e-05,2]
[423210454,1779934246000,-500.0,8.493e-05,2]
[423210442,1779934246000,-500.0,8.493e-05,2]
[423210464,1779934246000,-500.0,8.493e-05,2]
[423210465,1779934246000,-500.0,8.493e-05,2]
[423210459,1779934246000,-500.0,8.493e-05,2]
[423210451,1779934246000,-500.0,8.493e-05,2]
[423210458,1779934246000,-500.0,8.493e-05,2]
[423210455,1779934246000,-500.0,8.493e-05,2]
[423210460,1779934246000,-500.0,8.493e-05,2]
[423210466,1779934246000,-500.0,8.493e-05,2]
[423210462,1779934246000,-500.0,8.493e-05,2]
[423210457,1779934246000,-413.68715155,8.493e-05,2]
[423210452,1779934246000,-393.61902112,8.493e-05,2]
[423210456,1779934246000,-500.0,8.493e-05,2]
[423210463,1779934246000,-500.0,8.493e-05,2]
[423210461,1779934246000,-162.44012158,8.493e-05,2]
[423210453,1779934246000,-500.0,8.493e-05,2]
[423210514,1779934247000,-500.0,8.767e-05,2]
[423210512,1779934247000,-491.8554172,8.767e-05,2]
[423210521,1779934247000,-247.91198466,8.767e-05,2]
[423210509,1779934247000,-500.0,8.767e-05,2]
[423210503,1779934247000,-501.34746091,8.767e-05,2]
[423210520,1779934247000,-500.0,8.767e-05,2]
[423210501,1779934247000,-501.36515874,8.767e-05,2]
[423210495,1779934247000,-500.0,8.767e-05,2]
[423210500,1779934247000,-500.0,8.767e-05,2]
[423210498,1779934247000,-500.80290068,8.767e-05,2]
[423210507,1779934247000,-503.47500418,8.767e-05,2]
[423210516,1779934247000,-500.0,8.767e-05,2]
[423210513,1779934247000,-500.0,8.767e-05,2]
[423210518,1779934247000,-213.00455215,8.767e-05,2]
[423210508,1779934247000,-500.0,8.767e-05,2]
[423210511,1779934247000,-500.0,8.767e-05,2]
[423210515,1779934247000,-500.0,8.767e-05,2]
[423210510,1779934247000,-604.99790138,8.767e-05,2]
[423210517,1779934247000,-500.0,8.767e-05,2]
[423210523,1779934247000,-502.76817403,8.767e-05,2]
[423210533,1779934247000,-500.0,8.767e-05,2]
[423210534,1779934247000,-508.41116456,8.767e-05,2]
[423210535,1779934247000,-440.71281487,8.767e-05,2]
[423210526,1779934247000,-501.47757785,8.767e-05,2]
[423210506,1779934247000,-489.47077902,8.767e-05,2]
[423210519,1779934247000,-500.0,8.767e-05,2]
[423210496,1779934247000,-500.0,8.767e-05,2]
[423210471,1779934247000,-500.0,8.767e-05,2]
[423210528,1779934247000,-501.98154601,8.767e-05,2]
[423210473,1779934247000,-503.48844407,8.767e-05,2]
[423210467,1779934247000,-500.0,8.493e-05,2]
[423210474,1779934247000,-979.7814,8.767e-05,2]
[423210469,1779934247000,-461.73505075,8.493e-05,2]
[423210468,1779934247000,-500.0,8.493e-05,2]
[423210470,1779934247000,-500.0,8.493e-05,2]
[423210472,1779934247000,-630.21278434,8.767e-05,2]
[423210475,1779934247000,-500.0,8.767e-05,2]
[423210479,1779934247000,-500.0,8.767e-05,2]
[423210476,1779934247000,-500.0,8.767e-05,2]
[423210477,1779934247000,-500.0,8.767e-05,2]
[423210478,1779934247000,-303.83281024,8.767e-05,2]
[423210502,1779934247000,-500.70787778,8.767e-05,2]
[423210481,1779934247000,-503.73829546,8.767e-05,2]
[423210487,1779934247000,-501.09277197,8.767e-05,2]
[423210480,1779934247000,-501.03087018,8.767e-05,2]
[423210483,1779934247000,-270.75694665,8.767e-05,2]
[423210491,1779934247000,-501.44921112,8.767e-05,2]
[423210485,1779934247000,-503.13595907,8.767e-05,2]
[423210489,1779934247000,-500.0,8.767e-05,2]
[423210494,1779934247000,-500.0,8.767e-05,2]
[423210493,1779934247000,-262.38956976,8.767e-05,2]
[423210504,1779934247000,-502.44110815,8.767e-05,2]
[423210497,1779934247000,-391.63435761,8.767e-05,2]
[423210505,1779934247000,-500.85858737,8.767e-05,2]
[423210499,1779934247000,-500.0,8.767e-05,2]
[423210492,1779934247000,-239.51004752,8.767e-05,2]
[423210525,1779934247000,-500.0,8.767e-05,2]
[423210557,1779934247000,-500.6489992,8.767e-05,2]
[423210529,1779934247000,-363.78943619,8.767e-05,2]
[423210556,1779934247000,-504.74107662,8.767e-05,2]
[423210563,1779934247000,-442.94554411,8.767e-05,2]
[423210564,1779934247000,-503.48529116,8.767e-05,2]
[423210567,1779934247000,-565.91856326,8.767e-05,2]
[423210569,1779934247000,-794.53,8.767e-05,2]
[423210565,1779934247000,-500.0,8.767e-05,2]
[423210572,1779934247000,-502.00988621,8.767e-05,2]
[423210574,1779934247000,-500.0,8.767e-05,2]